[Event "DFMMLV 2017"]
[Site "Braunfels"]
[Date "2017.06.16"]
[Round "3"]
[White "Heymann-Lobzhanidze, Anna-Luise"]
[Black "Gheng, Simona"]
[Result "1/2-1/2"]
[ECO "B20"]
[WhiteElo "1979"]
[BlackElo "1999"]
[Annotator "NA"]
[PlyCount "108"]
[EventDate "2017.??.??"]
[EventType "team-tourn"]
[EventCountry "GER"]
[SourceTitle "playchess.com"]
[Source "ChessBase"]
[SourceQuality "1"]
[TimeControl "40/5400+30:1800+30"]

{[%evp 23,100,-16,-16,32767,-2,32767,32767,-45,-62,-103,32767,32767,-35,-28,-24,-12,-12,-8,-14,-9,0,32767,32767,-12,-11,-19,32767,32767,32767,-42,-24,-42,-39,-64,-77,-82,-70,-84,-78,-104,-94,32767,-192,-175,-101,-107,-117,-114,32767,-115,32767,32767,32767,32767,32767,32767,32767,32767,32767,32767,32767,32767,-390,-410,-366,-380,-424,-466,-576,-474,-620,-484,32767,32767,32767,32767,-5791,-1304,-1601]} 1. e4 {[%emt 0:00:00]} c5 {[%emt 0:00:08]} 2. d3 {[%emt 0:00:00]} d6 {[%emt 0:00:18]} 3. g3 {[%emt 0:00:00]} Nc6 {[%emt 0:00:13]} 4. Bg2 {[%emt 0:00:00]} g6 {[%emt 0:00:20]} 5. f4 {[%emt 0:00:25]} e6 {[%emt 0:01:18]} 6. Nf3 {[%emt 0:00:11]} Bg7 {[%emt 0:00:09]} 7. c3 {[%emt 0:00:14]} Nge7 {[%emt 0:01:07]} 8. O-O {[%emt 0:00:21]} O-O {[%emt 0:01:30]} 9. Be3 {[%emt 0:01:35]} b6 {[%emt 0:04:24]} 10. Na3 {[%emt 0:02:18]} Bb7 {[%emt 0:01:15]} 11. Qd2 {[%emt 0:04:01] B20: Sicilian: Unusual White 2nd moves} (11. Nc2 Qd7 12. Qd2 f5 13. b3 Rae8 14. Rad1 Nd8 15. exf5 exf5 16. c4 Qc8 17. d4 Be4 18. Ng5 Bxg2 19. Qxg2 {1-0 (92) Grigoryan,A (2571)-Melkumyan,H (2625) Yerevan 2014}) 11... d5 {[%emt 0:02:44]} 12. exd5 $146 {[%emt 0:00:42]} ({Predecessor:} 12. e5 Nf5 13. Bf2 h5 14. h3 a6 15. Rae1 Qc7 16. Nc2 Rfd8 17. g4 hxg4 18. hxg4 Nfe7 {0-1 (41) Piro Madraccio,N-Garro Jimenez,J Ronda 1997}) 12... Nxd5 {[%emt 0:00:14]} 13. Bf2 {[%emt 0:01:40]} Qd7 {[%emt 0:02:40]} 14. Nc4 {[%emt 0:04:22]} Rad8 {[%emt 0:00:44]} 15. d4 {[%emt 0:05:27]} cxd4 {[%emt 0:03:23]} 16. Nxd4 {[%emt 0:00:27]} (16. cxd4 $15 f6 17. Rfe1) 16... Nxd4 {[%emt 0:00:21]} 17. Bxd4 {[%emt 0:01:49] [#]} Bxd4+ {[%emt 0:05:37]} ({Black should try} 17... Nxc3 $1 $17 {[%mdl 512]} 18. Bxg7 (18. Bxc3 Qc7 $17) (18. bxc3 Bxg2) 18... Qxd2 19. Nxd2 Ne2+ 20. Kf2 Kxg7 21. Bxb7 Rxd2) 18. Qxd4 {[%emt 0:04:03]} Qc7 {[%emt 0:00:23]} 19. Ne5 {[%emt 0:01:57]} Nf6 {[%emt 0:01:36]} 20. Qe3 {[%emt 0:05:52]} Bxg2 {[%emt 0:01:38]} 21. Kxg2 {[%emt 0:00:21]} Nd7 {[%emt 0:02:13]} 22. Nf3 {[%emt 0:05:51]} Qc6 {[%emt 0:04:19]} 23. Kg1 {[%emt 0:02:44]} Nf6 {[%emt 0:02:47]} 24. Nd4 {[%emt 0:06:52]} Qc5 {[%emt 0:00:23]} 25. Rfe1 {[%emt 0:01:20]} Ng4 {[%emt 0:07:29]} 26. Qe4 {[%emt 0:02:06]} (26. Qf3 $5 {[%cal Rf3g4]} e5 27. b4 $11) 26... Nh6 {[%emt 0:07:56]} 27. Kg2 {[%emt 0:05:04]} Nf5 {[%emt 0:00:10]} 28. Nxf5 {[%emt 0:02:00]} Rd2+ {[%emt 0:00:36]} 29. Re2 {[%emt 0:01:02]} exf5 {[%emt 0:02:18]} 30. Qf3 {[%emt 0:01:07]} Rfd8 {[%emt 0:00:08]} 31. Rae1 {[%emt 0:11:55]} Kg7 {[%emt 0:03:05]} 32. a3 {[%emt 0:09:25]} Qb5 {[%emt 0:06:26]} 33. b4 {[%emt 0:04:59]} Qc4 {[%emt 0:03:51]} (33... R2d3 $19 34. Qb7 Rxc3) 34. Qe3 {[%emt 0:00:59]} Qd5+ {[%emt 0:00:49]} 35. Kf2 {[%emt 0:00:32]} Rd3 {[%emt 0:00:25]} 36. Qe5+ {[%emt 0:01:42]} Qxe5 {[%emt 0:02:17]} 37. fxe5 {[%emt 0:00:07]} Rxc3 {[%emt 0:00:58]} 38. e6 {[%emt 0:00:20]} fxe6 {[%emt 0:00:31]} 39. Rxe6 {[%emt 0:00:09]} Rd2+ {[%emt 0:00:14]} 40. R1e2 {[%emt 0:02:46]} Rxe2+ {[%emt 0:30:12]} 41. Kxe2 {[%emt 0:30:08]} Rxa3 {[%emt 0:00:04]} 42. Re7+ {[%emt 0:00:36]} Kh6 {[%emt 0:00:37]} 43. Rd7 {[%emt 0:01:08]} a5 {[%emt 0:00:28]} 44. bxa5 {[%emt 0:02:56]} bxa5 {[%emt 0:00:09]} 45. Kf2 {[%emt 0:01:23]} Ra2+ {[%emt 0:00:16]} 46. Kg1 {[%emt 0:00:13]} a4 {[%emt 0:00:08]} 47. Ra7 {[%emt 0:00:23]} a3 {[%emt 0:00:08]} 48. Kh1 {[%emt 0:00:16]} Kg5 {[%emt 0:00:13]} 49. Kg1 {[%emt 0:01:21]} h5 {[%emt 0:01:11]} 50. Ra6 $19 {[%emt 0:00:24]} (50. Ra4 $142) 50... Kg4 {[%emt 0:01:41]} 51. Ra4+ {[%emt 0:00:38]} Kf3 {[%emt 0:00:26]} 52. Rf4+ {[%emt 0:00:20]} Ke3 {[%emt 0:00:06]} 53. Ra4 {[%emt 0:00:14]} g5 {[%emt 0:00:37]} 54. Ra5 {[%emt 0:00:27]} f4 {[%emt 0:02:03]} 1/2-1/2

[Event "DFMMLV 2017"]
[Site "Braunfels"]
[Date "2017.06.16"]
[Round "3"]
[White "Lowke, Kathrin"]
[Black "Hartmann, Cora"]
[Result "0-1"]
[ECO "C78"]
[WhiteElo "1966"]
[BlackElo "1788"]
[Annotator "NA RC"]
[PlyCount "140"]
[EventDate "2017.??.??"]
[EventType "team-tourn"]
[EventCountry "GER"]
[SourceTitle "playchess.com"]
[Source "ChessBase"]
[SourceQuality "1"]
[TimeControl "40/5400+30:1800+30"]

1. e4 {[%emt 0:00:00]} e5 {[%emt 0:00:15]} 2. Nf3 {[%emt 0:00:00]} Nc6 {[%emt 0:00:03]} 3. Bb5 {[%emt 0:00:18]} a6 {[%emt 0:00:04]} 4. Ba4 {[%emt 0:00:00]} Nf6 {[%emt 0:00:06]} 5. O-O {[%emt 0:00:52]} b5 {[%emt 0:01:14]} 6. Bb3 {[%emt 0:00:06]} d6 {[%emt 0:00:09]} 7. h3 {[%emt 0:01:42] C78: Ruy Lopez: Archangelsk and Möller Defences} (7. d3 Be7 8. a3 O-O 9. Nc3 Na5 10. Ba2 Be6 11. Bd2 Bxa2 12. Rxa2 Nc6 13. a4 Rb8 14. Nd5 b4 15. Nxe7+ Nxe7 16. Bg5 Ng6 17. Nh4 {½-½ (41) Swiercz,D (2608)-Efimenko,Z (2648) Lublin 2014}) 7... Na5 {[%emt 0:09:23]} 8. c3 {[%emt 0:02:55]} Nxb3 {[%emt 0:00:47]} 9. Qxb3 {[%emt 0:01:06]} Bb7 {[%emt 0:04:00]} 10. d3 {[%emt 0:02:00]} Be7 {[%emt 0:00:29]} 11. Re1 {[%emt 0:00:53]} O-O {[%emt 0:00:49]} 12. Nbd2 {[%emt 0:00:34]} c5 {[%emt 0:04:10]} 13. Nf1 $146 {[%emt 0:12:01]} ({Predecessor:} 13. a4 Bc6 {0-1 (60) Chernyh,P (1870)-Alimov,A (1964) Novokuznetsk 2013}) 13... Qc7 {[%emt 0:02:32]} 14. Ng3 {[%emt 0:03:00]} Rfe8 {[%emt 0:01:07]} 15. Nf5 {[%emt 0:04:06]} Bf8 {[%emt 0:02:29]} 16. Bg5 {[%emt 0:03:19]} Nh5 {[%emt 0:08:56]} 17. Rad1 {[%emt 0:04:50]} Nf4 {[%emt 0:02:47]} 18. Ne3 $2 $11 {[%emt 0:13:46]} (18. Qc2 $17) 18... Ne6 {[%emt 0:09:36]} 19. Bh4 {[%emt 0:01:37]} Nf4 {[%emt 0:04:52]} ({Black should try} 19... c4 $17 20. dxc4 Nc5) 20. Bg3 $2 {[%emt 0:01:23]} Nh5 {[%emt 0:05:19]} 21. Bh2 {[%emt 0:01:58]} Nf6 {[%emt 0:03:12]} 22. Nh4 {[%emt 0:04:29]} Rac8 {[%emt 0:03:02]} 23. f3 {[%emt 0:07:49]} (23. c4 $15) 23... g6 {[%emt 0:06:15]} 24. Qc2 {[%emt 0:01:52]} Bh6 {[%emt 0:05:15]} 25. Qf2 {[%emt 0:02:39]} Nh5 {[%emt 0:03:46]} 26. Ng4 {[%emt 0:02:53]} Bg5 {[%emt 0:01:08]} 27. g3 {[%emt 0:06:59]} Bxh4 {[%emt 0:01:29]} ({Black should play} 27... Rf8 $19 28. d4 cxd4 29. cxd4 f5 30. dxe5 fxg4 31. hxg4 Ng7 32. exd6 Qd7) 28. gxh4 {[%emt 0:00:06]} Kh8 {[%emt 0:09:01]} 29. Kh1 {[%emt 0:05:48]} (29. d4 $1 $11) 29... Rf8 {[%emt 0:01:50]} (29... f5 $17 30. Ne3 Qf7) 30. Ne3 {[%emt 0:06:46]} Qd7 {[%emt 0:01:58]} 31. Qg2 {[%emt 0:01:09]} f5 {[%emt 0:01:41]} 32. Rf1 {[%emt 0:01:43]} fxe4 {[%emt 0:02:00]} ({Black should try} 32... Rce8 33. b3 a5) 33. fxe4 {[%emt 0:00:29]} Nf4 {[%emt 0:01:20]} 34. Bxf4 $1 {[%emt 0:00:11]} Rxf4 {[%emt 0:00:31]} 35. Rxf4 {[%emt 0:01:43]} exf4 {[%emt 0:00:01]} 36. Ng4 {[%emt 0:00:07]} Rf8 {[%emt 0:01:21]} 37. Rf1 {[%emt 0:01:53]} d5 {[%emt 0:00:59]} 38. Kh2 {[%emt 0:01:33]} dxe4 {[%emt 0:00:26]} 39. dxe4 {[%emt 0:00:08]} Qe7 {[%emt 0:00:30]} 40. Nf2 {[%emt 0:03:04]} Qxh4 {[%emt 0:32:56]} 41. Qf3 {[%emt 0:31:12]} Qg3+ {[%emt 0:00:00]} 42. Qxg3 {[%emt 0:00:00]} fxg3+ {[%emt 0:00:00]} 43. Kxg3 {[%emt 0:00:00] [#]} Bxe4 $1 {[%emt 0:00:00]} 44. Rd1 {[%emt 0:00:00]} Rf3+ {[%emt 0:00:00]} 45. Kg2 {[%emt 0:00:00]} Rd3+ {[%emt 0:00:00]} 46. Kh2 {[%emt 0:00:00]} Rxd1 {[%emt 0:00:00]} 47. Nxd1 {[%emt 0:00:00]} Kg7 {[%emt 0:00:00]} 48. Kg3 {[%emt 0:00:00]} Kf6 {[%emt 0:00:00]} 49. Kf4 {[%emt 0:00:00]} Bb1 {[%emt 0:00:00]} 50. a3 {[%emt 0:00:00]} g5+ {[%emt 0:00:00]} 51. Ke3 {[%emt 0:00:00]} h5 {[%emt 0:00:00]} 52. Nf2 {[%emt 0:00:00]} Ke5 {[%emt 0:00:00]} 53. b4 {[%emt 0:00:00]} Kd5 {[%emt 0:00:00]} 54. Kd2 {[%emt 0:00:47]} Kc4 {[%emt 0:00:00]} 55. Nd1 {[%emt 0:01:33]} cxb4 {[%emt 0:00:00]} 56. axb4 {[%emt 0:00:14]} Be4 {[%emt 0:01:17]} 57. Ne3+ {[%emt 0:01:28]} Kb3 {[%emt 0:00:03]} 58. Nd1 {[%emt 0:00:08]} Bf5 {[%emt 0:00:42]} 59. Nf2 {[%emt 0:03:16]} Kc4 {[%emt 0:00:15]} 60. Nh1 {[%emt 0:00:48]} Bxh3 {[%emt 0:00:45]} 61. Ng3 {[%emt 0:00:13]} h4 {[%emt 0:01:01]} 62. Ne4 {[%emt 0:00:21]} g4 {[%emt 0:01:14]} 63. Nd6+ {[%emt 0:00:03]} Kd5 {[%emt 0:00:24]} 64. Nf5 {[%emt 0:00:09]} g3 {[%emt 0:00:21]} 65. Nxh4 {[%emt 0:00:14]} Ke4 {[%emt 0:00:39]} (65... g2 $142 66. Nf3 Bg4) 66. Ke2 {[%emt 0:00:50]} g2 {[%emt 0:01:38]} 67. Nxg2 {[%emt 0:00:49]} Bxg2 {[%emt 0:00:06]} 68. Kd2 {[%emt 0:00:11]} Bf3 $19 {[%emt 0:00:44]} 69. Kc2 {[%emt 0:00:12]} Ke3 {[%emt 0:00:06]} 70. Kb3 {[%emt 0:00:13]} Kd3 {[%emt 0:00:05]} 0-1

[Event "DFMMLV 2017"]
[Site "Braunfels"]
[Date "2017.06.16"]
[Round "3"]
[White "Poetsch, Leonore"]
[Black "Ambartsumova, Karina"]
[Result "1/2-1/2"]
[ECO "B07"]
[WhiteElo "1959"]
[BlackElo "2318"]
[Annotator "ChessBase"]
[PlyCount "59"]
[EventDate "2017.??.??"]
[EventType "team-tourn"]
[EventCountry "GER"]
[SourceTitle "playchess.com"]
[Source "ChessBase"]
[SourceQuality "1"]
[TimeControl "40/5400+30:1800+30"]

1. e4 {[%emt 0:00:00]} d6 {[%emt 0:00:37]} 2. d4 {[%emt 0:00:00]} Nf6 {[%emt 0:00:09]} 3. Nc3 {[%emt 0:00:00]} e5 {[%emt 0:01:09]} 4. dxe5 {[%emt 0:01:12]} dxe5 {[%emt 0:00:13]} 5. Qxd8+ {[%emt 0:00:13]} Kxd8 {[%emt 0:00:06]} 6. Bg5 {[%emt 0:00:14]} c6 {[%emt 0:09:54]} 7. O-O-O+ {[%emt 0:02:30]} Kc7 {[%emt 0:07:44]} 8. Bc4 {[%emt 0:02:16]} Be6 {[%emt 0:00:21]} 9. Bxe6 {[%emt 0:01:16]} fxe6 {[%emt 0:00:09]} 10. Nf3 {[%emt 0:01:10]} Nbd7 {[%emt 0:04:16]} 11. a3 {[%emt 0:02:46]} b5 {[%emt 0:03:17]} 12. Rd2 {[%emt 0:06:53]} b4 {[%emt 0:13:52]} 13. axb4 {[%emt 0:00:58]} Bxb4 {[%emt 0:00:05]} 14. Rhd1 {[%emt 0:05:02]} Nc5 {[%emt 0:06:32]} 15. Nxe5 {[%emt 0:09:08]} Bxc3 {[%emt 0:02:10]} 16. bxc3 {[%emt 0:00:09]} Ncxe4 {[%emt 0:10:20]} 17. Bf4 {[%emt 0:04:05]} Nxd2 {[%emt 0:01:53]} 18. Nf7+ {[%emt 0:00:17]} Kb6 {[%emt 0:04:42]} 19. Nxh8 {[%emt 0:01:10]} Nde4 {[%emt 0:00:21]} 20. Nf7 {[%emt 0:00:59]} Nxc3 {[%emt 0:00:44]} 21. Re1 {[%emt 0:01:41]} Ncd5 {[%emt 0:06:39]} 22. Bd6 {[%emt 0:02:48]} a5 {[%emt 0:04:24]} 23. Rxe6 {[%emt 0:01:30]} Re8 {[%emt 0:01:57]} 24. Rxe8 {[%emt 0:01:46]} Nxe8 {[%emt 0:00:02]} 25. Be5 {[%emt 0:02:11]} Ndf6 {[%emt 0:07:20]} 26. f3 {[%emt 0:02:40]} Kc5 {[%emt 0:00:16]} 27. g4 {[%emt 0:02:26]} Nd7 {[%emt 0:05:24]} 28. Bc3 {[%emt 0:02:17]} a4 {[%emt 0:00:01]} 29. Kb2 {[%emt 0:01:24]} Kc4 {[%emt 0:02:35]} 30. Bd2 {[%emt 0:02:58]} 1/2-1/2

[Event "DFMMLV 2017"]
[Site "Braunfels"]
[Date "2017.06.16"]
[Round "3"]
[White "Zpevakova, Katerina"]
[Black "Froehlich-Dill, Astrid"]
[Result "1-0"]
[ECO "A08"]
[WhiteElo "1912"]
[BlackElo "1892"]
[Annotator "NA RC"]
[PlyCount "89"]
[EventDate "2017.??.??"]
[EventType "team-tourn"]
[EventCountry "GER"]
[SourceTitle "playchess.com"]
[Source "ChessBase"]
[SourceQuality "1"]
[TimeControl "40/5400+30:1800+30"]

1. Nf3 {[%emt 0:00:00]} d5 {[%emt 0:00:35]} 2. g3 {[%emt 0:00:00]} c5 {[%emt 0:01:21]} 3. Bg2 {[%emt 0:00:17]} Nc6 {[%emt 0:00:53]} 4. d3 {[%emt 0:00:15]} e5 {[%emt 0:02:39]} 5. Nbd2 {[%emt 0:00:17]} Nf6 {[%emt 0:03:16] A08: King's Indian Attack} 6. c3 {[%emt 0:02:56]} (6. e4 d4 7. Nc4 Bd6 8. Nxd6+ Qxd6 9. Nh4 Be6 10. f4 O-O-O 11. O-O h6 12. a3 Qc7 13. Bd2 Kb8 14. b4 cxb4 15. axb4 {0-1 (51) Shchekachev,A (2528)-Postny,E (2653) Aix les Bains 2012}) 6... Bf5 {[%emt 0:07:04]} 7. O-O {[%emt 0:07:04]} Qd7 {[%emt 0:05:02]} 8. Qa4 $146 {[%emt 0:09:06]} ({Predecessor:} 8. Re1 O-O-O 9. Qa4 h6 10. e4 dxe4 11. dxe4 Be6 12. a3 Qc7 13. b4 Nd7 14. Bf1 {1-0 (62) Tsiapouris,M (1717)-Benbachir,K (1388) IECC email 2007}) 8... Bd6 {[%emt 0:07:47]} 9. e4 {[%emt 0:05:13]} dxe4 {[%emt 0:01:47]} 10. dxe4 {[%emt 0:00:25]} Be6 {[%emt 0:09:17]} 11. Re1 {[%emt 0:04:25]} O-O {[%emt 0:10:14]} 12. Ng5 {[%emt 0:11:48]} a6 {[%emt 0:05:50]} 13. Nxe6 {[%emt 0:03:29]} Qxe6 {[%emt 0:00:32]} 14. Qc4 {[%emt 0:02:43]} Qe7 {[%emt 0:01:38]} 15. Qe2 {[%emt 0:01:22]} b5 {[%emt 0:01:47]} 16. Nf3 {[%emt 0:02:34]} c4 {[%emt 0:01:32]} 17. Nh4 {[%emt 0:01:06]} Bc5 {[%emt 0:05:59]} (17... g6 $11 {keeps the balance.}) 18. Nf5 {[%emt 0:04:57]} Qa7 {[%emt 0:04:01]} 19. Be3 {[%emt 0:02:08]} Rad8 {[%emt 0:03:32]} 20. b4 {[%emt 0:03:59]} (20. Bg5 $16 Be7 21. a4) 20... Bxe3 {[%emt 0:01:17]} 21. Nxe3 {[%emt 0:00:49]} Rd3 {[%emt 0:05:17]} 22. Qc2 {[%emt 0:07:10]} (22. Nd5 $16) 22... Rfd8 {[%emt 0:02:32]} 23. Rad1 {[%emt 0:00:45]} a5 {[%emt 0:04:34]} 24. Nd5 {[%emt 0:05:06]} Rxd1 {[%emt 0:01:42]} 25. Rxd1 {[%emt 0:01:57]} axb4 {[%emt 0:06:09]} 26. Nxb4 {[%emt 0:02:27]} Rxd1+ {[%emt 0:00:07]} 27. Qxd1 {[%emt 0:00:17]} Qc7 {[%emt 0:01:48]} 28. Nd5 {[%emt 0:04:26]} Qb7 {[%emt 0:01:48]} 29. Qf3 {[%emt 0:02:28]} Nxd5 {[%emt 0:01:00]} 30. exd5 {[%emt 0:00:05]} Nd8 {[%emt 0:00:33]} 31. Qe3 {[%emt 0:01:41]} Qc7 {[%emt 0:01:25]} 32. Qe2 {[%emt 0:04:12]} f6 {[%emt 0:00:44]} 33. Qb2 {[%emt 0:00:09]} (33. a4 $5) 33... Qa5 {[%emt 0:00:37]} (33... Qd7 $11 {keeps the balance.}) 34. a3 {[%emt 0:01:02]} (34. d6 $16) 34... Qa4 {[%emt 0:00:40]} 35. Be4 {[%emt 0:01:28]} Qd1+ {[%emt 0:00:58]} 36. Kg2 {[%emt 0:00:10]} Qb3 {[%emt 0:00:31]} 37. Qc1 {[%emt 0:02:28]} Nb7 {[%emt 0:00:35]} 38. Bc2 {[%emt 0:02:10]} Qa2 $14 {[%emt 0:00:26]} 39. Bf5 {[%emt 0:01:05]} Nd6 {[%emt 0:00:57]} 40. Be6+ {[%emt 0:01:06]} Kf8 {[%emt 0:30:03]} 41. Qe3 {[%emt 0:31:05]} Nc8 {[%emt 0:01:52]} 42. Qc5+ {[%emt 0:00:29]} Ne7 {[%emt 0:00:08]} 43. d6 {[%emt 0:01:03]} Qd2 {[%emt 0:00:00]} 44. dxe7+ {[%emt 0:00:00]} Ke8 {[%emt 0:00:00]} 45. Bd5 {[%emt 0:00:00]} 1-0

[Event "DFMMLV 2017"]
[Site "Braunfels"]
[Date "2017.06.16"]
[Round "3"]
[White "Vollstaedt-Klein, Sabine"]
[Black "von Keyserlingk, Chanda"]
[Result "1/2-1/2"]
[ECO "B23"]
[WhiteElo "1879"]
[BlackElo "1732"]
[Annotator "NA"]
[PlyCount "90"]
[EventDate "2017.??.??"]
[EventType "team-tourn"]
[EventCountry "GER"]
[SourceTitle "playchess.com"]
[Source "ChessBase"]
[SourceQuality "1"]
[TimeControl "40/5400+30:1800+30"]

{[%evp 20,80,52,19,57,32767,0,-30,32767,32767,27,32767,35,32767,23,32767,32767,10,30,29,62,50,69,22,32767,19,54,32767,71,31,38,32767,32767,18,20,19,32767,32767,89,27,98,32767,87,97,32767,32767,32767,32767,147,32767,32767,146,32767,137,143,2,209,46,308,32767,611,146,141]} 1. e4 {[%emt 0:00:00]} c5 {[%emt 0:00:17]} 2. Nc3 {[%emt 0:00:00]} d6 {[%emt 0:00:32]} 3. g3 {[%emt 0:00:00]} g6 {[%emt 0:00:14]} 4. Bg2 {[%emt 0:00:01]} Bg7 {[%emt 0:00:19]} 5. Nge2 {[%emt 0:00:28]} e6 {[%emt 0:07:10]} 6. d3 {[%emt 0:00:34]} Ne7 {[%emt 0:01:43]} 7. O-O {[%emt 0:01:53]} O-O {[%emt 0:04:09]} 8. Be3 {[%emt 0:03:30]} Nbc6 {[%emt 0:03:48]} 9. Qd2 {[%emt 0:00:38]} Re8 {[%emt 0:04:14] B26: Closed Sicilian: 3 g3, lines with early Be3} 10. d4 {[%emt 0:03:47]} cxd4 {[%emt 0:05:31]} 11. Nxd4 {[%emt 0:00:08]} a6 {[%emt 0:01:28]} 12. Nce2 $146 {[%emt 0:02:39]} ({Predecessor:} 12. Rad1 Ne5 13. b3 Ng4 14. Bg5 h6 15. h3 hxg5 16. hxg4 Nc6 17. Nce2 Nxd4 18. Nxd4 {1-0 (67) Djuric,Z (2235)-Bojkovic,S (2365) Nis 1993}) 12... Ne5 {[%emt 0:04:57]} 13. Qd1 {[%emt 0:08:11]} Nc4 {[%emt 0:04:44]} 14. Bc1 {[%emt 0:00:12]} Nc6 {[%emt 0:03:42]} ({Black should try} 14... e5 $15 15. Nb3 Be6) 15. b3 {[%emt 0:05:31]} Nb6 {[%emt 0:02:55]} 16. Rb1 {[%emt 0:00:29]} Qc7 {[%emt 0:02:19]} 17. Nxc6 {[%emt 0:01:55]} bxc6 {[%emt 0:00:24]} 18. Be3 {[%emt 0:04:59]} Rb8 {[%emt 0:02:26]} 19. Qd2 {[%emt 0:03:01]} Bf8 {[%emt 0:07:32]} 20. Rbd1 {[%emt 0:00:28]} Bb7 {[%emt 0:00:31]} 21. Bh6 {[%emt 0:00:46]} Be7 {[%emt 0:01:04]} 22. Bg5 {[%emt 0:05:28]} f6 {[%emt 0:01:53]} 23. Be3 {[%emt 0:01:54]} Rbd8 {[%emt 0:00:47]} 24. Nd4 {[%emt 0:01:17]} Bf8 {[%emt 0:00:36]} 25. Bh6 {[%emt 0:00:43]} e5 {[%emt 0:01:44]} 26. Bxf8 {[%emt 0:03:28]} Kxf8 {[%emt 0:01:35]} 27. Ne2 {[%emt 0:00:50]} Bc8 {[%emt 0:05:56]} 28. c4 {[%emt 0:03:32]} Bb7 {[%emt 0:05:43]} 29. h4 {[%emt 0:02:25]} ({White should play} 29. Nc3 $16) 29... Nc8 {[%emt 0:02:38]} (29... d5 $11) 30. Qe3 {[%emt 0:03:21]} c5 {[%emt 0:01:27]} 31. f4 {[%emt 0:01:20]} Kg7 {[%emt 0:00:54]} 32. f5 {[%emt 0:01:25]} Ne7 {[%emt 0:00:57]} 33. g4 {[%emt 0:00:26]} Ng8 {[%emt 0:04:33]} (33... gxf5 $14 34. exf5 (34. gxf5 Nc6 $11) 34... Bxg2 35. Kxg2 d5) 34. Ng3 {[%emt 0:01:30]} Bc8 {[%emt 0:00:42]} 35. g5 {[%emt 0:02:41]} Rf8 {[%emt 0:00:46]} 36. fxg6 {[%emt 0:04:36]} hxg6 {[%emt 0:00:17] [#]} 37. h5 {[%emt 0:00:07]} (37. gxf6+ $1 $16 Nxf6 38. Qg5) 37... Qf7 $2 {[%emt 0:04:52] [#]} (37... Qe7 $1 $11) 38. gxf6+ {[%emt 0:02:56]} (38. hxg6 $1 $18 Qxg6 39. Nf5+ Bxf5 40. Rxf5) 38... Nxf6 $2 {[%emt 0:00:24]} (38... Kh7 $1 $14) 39. Qg5 {[%emt 0:00:11]} Qe8 $18 {[%emt 0:03:26]} (39... Qe7 40. Rd3 (40. Qxg6+ Kh8 $18) (40. hxg6 Rh8 $18) 40... Ng8 41. Qxg6+ Kh8 42. Rxf8 Qxf8) 40. Rd2 $2 {[%emt 0:04:28]} (40. h6+ $18 {is more deadly.} Kh7 41. Rxf6 Rxf6 42. Qxf6) 40... Nh7 {[%emt 0:31:15]} 41. h6+ {[%emt 0:30:24]} Kg8 {[%emt 0:00:54]} 42. Rxf8+ {[%emt 0:00:37]} Kxf8 {[%emt 0:00:41]} 43. Rf2+ {[%emt 0:03:07]} Kg8 {[%emt 0:00:42]} 44. Qd2 {[%emt 0:00:16]} Qe7 {[%emt 0:01:02]} 45. Rf1 {[%emt 0:04:01]} Be6 {[%emt 0:01:26]} 1/2-1/2

[Event "DFMMLV 2017"]
[Site "Braunfels"]
[Date "2017.06.16"]
[Round "3"]
[White "Lukas, Anne"]
[Black "Heil, Marina"]
[Result "0-1"]
[ECO "E92"]
[WhiteElo "1870"]
[BlackElo "1890"]
[Annotator "NA"]
[PlyCount "76"]
[EventDate "2017.??.??"]
[EventType "team-tourn"]
[EventCountry "GER"]
[SourceTitle "playchess.com"]
[Source "ChessBase"]
[SourceQuality "1"]
[TimeControl "40/5400+30:1800+30"]

1. d4 {[%emt 0:00:00]} Nf6 {[%emt 0:00:18]} 2. c4 {[%emt 0:00:00]} g6 {[%emt 0:00:17]} 3. Nc3 {[%emt 0:00:00]} Bg7 {[%emt 0:00:11]} 4. e4 {[%emt 0:00:00]} d6 {[%emt 0:00:16]} 5. Be2 {[%emt 0:00:00]} O-O {[%emt 0:00:28]} 6. Nf3 {[%emt 0:00:01]} e5 {[%emt 0:01:42]} 7. Be3 {[%emt 0:00:11]} Nc6 {[%emt 0:01:19]} 8. d5 {[%emt 0:00:08]} Ne7 {[%emt 0:00:07]} 9. Nd2 {[%emt 0:00:06]} Nd7 {[%emt 0:01:19]} 10. O-O {[%emt 0:00:29]} f5 {[%emt 0:01:55]} 11. f3 {[%emt 0:00:27]} f4 {[%emt 0:02:06]} 12. Bf2 {[%emt 0:02:20]} g5 {[%emt 0:03:03]} 13. b4 {[%emt 0:00:53]} Ng6 {[%emt 0:07:10]} 14. c5 {[%emt 0:01:58] E92: King's Indian: Classical: 6 Be2 e5: 7 dxe5, 7 Be3 and Petrosian System without 7...Nbd7} Nf6 {[%emt 0:04:41]} 15. cxd6 {[%emt 0:01:12]} cxd6 {[%emt 0:00:07]} 16. Nc4 {[%emt 0:00:08]} Ne8 {[%emt 0:06:30]} 17. Nb5 {[%emt 0:02:25]} b6 {[%emt 0:08:34]} 18. Nxa7 $146 {[%emt 0:05:10]} ({Predecessor:} 18. a4 Qe7 19. Qb3 h5 20. Rfc1 Bd7 21. Nxa7 Rxa7 22. Nxb6 {1-0 (39) Vezzosi,P (2328)-Loiacono,A (2085) Trieste 2016}) 18... Rxa7 {[%emt 0:01:14]} 19. Bxb6 {[%emt 0:00:06]} Qe7 {[%emt 0:00:13]} 20. Bxa7 {[%emt 0:00:22]} Qxa7+ {[%emt 0:00:07]} 21. Rf2 $2 {[%emt 0:00:40]} (21. Kh1 $18) 21... g4 {[%emt 0:09:12]} 22. fxg4 {[%emt 0:02:37]} f3 {[%emt 0:00:10]} 23. Bxf3 {[%emt 0:06:23]} Bxg4 {[%emt 0:00:46]} 24. Kf1 {[%emt 0:03:13]} ({White should play} 24. Qb3 $16) 24... Nh4 {[%emt 0:08:24]} 25. Qe2 {[%emt 0:03:35]} Nxf3 {[%emt 0:06:36]} 26. gxf3 {[%emt 0:00:08]} Bh3+ {[%emt 0:00:11]} 27. Ke1 {[%emt 0:01:31]} Qd4 {[%emt 0:01:49]} 28. Rb1 {[%emt 0:07:10]} Rf6 {[%emt 0:00:48]} 29. Ne3 {[%emt 0:02:26]} Bh6 {[%emt 0:05:01]} 30. Ng4 {[%emt 0:05:18]} Bxg4 {[%emt 0:00:33]} 31. fxg4 {[%emt 0:00:05]} Rxf2 {[%emt 0:00:14]} 32. Qxf2 {[%emt 0:00:05]} Qxe4+ {[%emt 0:00:10]} 33. Kf1 {[%emt 0:03:23]} Qxb1+ {[%emt 0:00:09]} 34. Kg2 {[%emt 0:00:04]} Qxb4 {[%emt 0:01:34]} 35. Qf5 {[%emt 0:01:09]} Qd2+ {[%emt 0:01:18]} 36. Kh3 {[%emt 0:01:06]} Qxd5 {[%emt 0:01:10]} 37. Qh5 {[%emt 0:01:44]} Qd3+ {[%emt 0:01:10]} 38. Kg2 {[%emt 0:00:35]} Qd2+ {[%emt 0:01:12]} 0-1